[Event "Queens Festival Europe 2022"]
[Site "Tornelo"]
[Date "2022.06.19"]
[Round "7.8"]
[White "Pyun, Lindsay"]
[Black "Ismayilova, Khanim"]
[Result "0-1"]
[ECO "B33"]
[WhiteElo "1526"]
[BlackElo "1647"]
[Annotator "NA RC"]
[PlyCount "76"]
[EventDate "2022.06.19"]
[EventType "swiss"]
[EventCountry "NET"]
[SourceTitle "playchess.com"]
[Source "ChessBase"]
[SourceQuality "1"]
[TimeControl "180+2"]

1. e4 {[%emt 0:00:02]} c5 {[%emt 0:00:04]} 2. Nf3 {[%emt 0:00:02]} Nc6 {[%emt 0:00:01]} 3. d4 {[%emt 0:00:01]} cxd4 {[%emt 0:00:00]} 4. Nxd4 {[%emt 0:00:00]} Nf6 {[%emt 0:00:01]} 5. Nc3 {[%emt 0:00:01]} e5 {[%emt 0:00:01]} 6. Ndb5 {[%emt 0:00:02]} d6 {[%emt 0:00:01]} 7. Bg5 {[%emt 0:00:02]} a6 {[%emt 0:00:01]} 8. Na3 {[%emt 0:00:01]} b5 {[%emt 0:00:00]} 9. Nd5 {[%emt 0:00:02]} Be7 {[%emt 0:00:01]} 10. Bxf6 {[%emt 0:00:03]} Bxf6 {[%emt 0:00:00]} 11. c3 {[%emt 0:00:07]} O-O {[%emt 0:00:03]} 12. Bd3 {[%emt 0:00:05]} Bg5 {[%emt 0:00:02]} 13. O-O {[%emt 0:00:06]} Be6 {[%emt 0:00:06]} 14. f4 {[%emt 0:00:14]} exf4 {[%emt 0:00:10]} 15. Nxf4 {[%emt 0:00:03]} Ne5 {[%emt 0:00:02]} 16. Be2 {[%emt 0:00:12]} Qb6+ {[%emt 0:00:17]} 17. Kh1 {[%emt 0:00:05]} Qe3 {[%emt 0:00:11]} 18. Nxe6 {[%emt 0:00:15]} fxe6 {[%emt 0:00:04]} 19. Bf3 {[%emt 0:00:16]} Rad8 {[%emt 0:00:18]} 20. Nc2 {[%emt 0:00:02]} Qc5 {[%emt 0:00:06]} 21. Nd4 {[%emt 0:00:02]} Rde8 {[%emt 0:00:07]} 22. Qe2 {[%emt 0:00:11]} Nc4 {[%emt 0:00:08]} 23. Bg4 {[%emt 0:00:07]} Rxf1+ {[%emt 0:00:31]} 24. Rxf1 {[%emt 0:00:03]} Qe5 {[%emt 0:00:05]} 25. Nxe6 {[%emt 0:00:08]} Rxe6 {[%emt 0:00:04]} 26. Bxe6+ {[%emt 0:00:01]} Qxe6 {[%emt 0:00:01]} 27. Qf3 {[%emt 0:00:02]} Qe7 {[%emt 0:00:05]} 28. b3 {[%emt 0:00:09]} Nd2 {[%emt 0:00:03]} 29. Qf5 {[%emt 0:00:18]} Nxf1 {[%emt 0:00:04]} 30. Qxf1 {[%emt 0:00:00]} h6 {[%emt 0:00:03]} 31. Qf3 {[%emt 0:00:03]} Qe5 {[%emt 0:00:03]} 32. Qh3 {[%emt 0:00:04]} Qxe4 {[%emt 0:00:05]} 33. Qc8+ {[%emt 0:00:09]} Kh7 {[%emt 0:00:02]} 34. h3 {[%emt 0:00:16]} Qe1+ {[%emt 0:00:02]} 35. Kh2 {[%emt 0:00:01]} Bf4+ {[%emt 0:00:01]} 36. g3 {[%emt 0:00:03]} Bxg3+ {[%emt 0:00:05]} 37. Kg2 {[%emt 0:00:02]} Qf2+ {[%emt 0:00:01]} 38. Kh1 {[%emt 0:00:01]} Qf1# {[%emt 0:00:00]} 0-1

[Event "Queens Festival Europe 2022"]
[Site "Tornelo"]
[Date "2022.06.19"]
[Round "7.9"]
[White "Cassi, Elisa"]
[Black "Stewart-Bermann, Tanya"]
[Result "1-0"]
[ECO "B76"]
[WhiteElo "1999"]
[BlackElo "1863"]
[Annotator "NA RC"]
[PlyCount "53"]
[EventDate "2022.06.19"]
[EventType "swiss"]
[EventCountry "NET"]
[SourceTitle "playchess.com"]
[Source "ChessBase"]
[SourceQuality "1"]
[TimeControl "180+2"]

1. e4 {[%emt 0:00:02]} c5 {[%emt 0:00:07]} 2. Nf3 {[%emt 0:00:02]} d6 {[%emt 0:00:04]} 3. d4 {[%emt 0:00:01]} cxd4 {[%emt 0:00:03]} 4. Nxd4 {[%emt 0:00:01]} Nf6 {[%emt 0:00:05]} 5. Nc3 {[%emt 0:00:01]} g6 {[%emt 0:00:04]} 6. Be3 {[%emt 0:00:02]} Bg7 {[%emt 0:00:03]} 7. f3 {[%emt 0:00:03]} O-O {[%emt 0:00:04]} 8. Qd2 {[%emt 0:00:01]} Nc6 {[%emt 0:00:10]} 9. O-O-O {[%emt 0:00:02]} Bd7 {[%emt 0:00:07]} 10. g4 {[%emt 0:00:05]} Rc8 {[%emt 0:00:04]} 11. h4 {[%emt 0:00:02]} h5 {[%emt 0:00:03]} 12. gxh5 {[%emt 0:00:03]} Nxh5 {[%emt 0:00:04]} 13. Be2 {[%emt 0:00:05]} Ne5 {[%emt 0:00:17]} 14. Rdg1 {[%emt 0:00:23]} Nc4 {[%emt 0:00:06]} 15. Bxc4 {[%emt 0:00:02]} Rxc4 {[%emt 0:00:01]} 16. Rg5 {[%emt 0:00:06]} b5 {[%emt 0:00:41]} 17. f4 {[%emt 0:00:11]} b4 {[%emt 0:00:30]} 18. Nd5 {[%emt 0:00:05]} e6 {[%emt 0:00:28]} 19. b3 {[%emt 0:00:57]} Rxd4 {[%emt 0:00:28]} 20. Bxd4 {[%emt 0:00:01]} exd5 {[%emt 0:00:01]} 21. Bxg7 {[%emt 0:00:10]} Kxg7 {[%emt 0:00:01]} 22. Qg2 {[%emt 0:00:15]} Qf6 {[%emt 0:00:03]} 23. Rxh5 {[%emt 0:00:11]} Qxf4+ {[%emt 0:00:03]} 24. Kb1 {[%emt 0:00:05]} dxe4 {[%emt 0:00:05]} 25. Rg5 {[%emt 0:00:05]} Bf5 {[%emt 0:00:03]} 26. Rf1 {[%emt 0:00:06]} Qe3 {[%emt 0:00:05]} 27. Rgxf5 {[%emt 0:00:08]} 1-0

[Event "Queens Festival Europe 2022"]
[Site "Tornelo"]
[Date "2022.06.19"]
[Round "7.9"]
[White "Jafarova, Aysel"]
[Black "Rashidova, Nargiz"]
[Result "1-0"]
[ECO "A41"]
[WhiteElo "1481"]
[BlackElo "1341"]
[Annotator "NA RC"]
[PlyCount "71"]
[EventDate "2022.06.19"]
[EventType "swiss"]
[EventCountry "NET"]
[SourceTitle "playchess.com"]
[Source "ChessBase"]
[SourceQuality "1"]
[TimeControl "180+2"]

1. d4 {[%emt 0:00:02]} d6 {[%emt 0:00:06]} 2. c4 {[%emt 0:00:02]} e5 {[%emt 0:00:04]} 3. d5 {[%emt 0:00:05]} f5 {[%emt 0:00:07]} 4. Nc3 {[%emt 0:00:05]} Nf6 {[%emt 0:00:05]} 5. e3 {[%emt 0:00:15]} Be7 {[%emt 0:00:08]} 6. Bd3 {[%emt 0:00:03]} c6 {[%emt 0:00:05]} 7. dxc6 {[%emt 0:00:12]} bxc6 {[%emt 0:00:06]} 8. e4 {[%emt 0:00:02]} f4 {[%emt 0:00:20]} 9. f3 {[%emt 0:00:33]} Nh5 {[%emt 0:00:32]} 10. Nge2 {[%emt 0:00:30]} Bh4+ {[%emt 0:00:20]} 11. Kd2 {[%emt 0:00:13]} Qb6 {[%emt 0:00:14]} 12. Kc2 {[%emt 0:00:17]} Na6 {[%emt 0:00:10]} 13. a3 {[%emt 0:00:04]} Nc5 {[%emt 0:00:04]} 14. b4 {[%emt 0:00:12]} Nd7 {[%emt 0:00:15]} 15. Rf1 {[%emt 0:00:15]} a5 {[%emt 0:00:19]} 16. Na4 {[%emt 0:00:22]} Qb7 {[%emt 0:00:03]} 17. Kc3 {[%emt 0:00:04]} axb4+ {[%emt 0:00:02]} 18. axb4 {[%emt 0:00:01]} Nb6 {[%emt 0:00:10]} 19. Bb2 {[%emt 0:00:02]} Nxa4+ {[%emt 0:00:02]} 20. Rxa4 {[%emt 0:00:01]} O-O {[%emt 0:00:09]} 21. Rxa8 {[%emt 0:00:02]} Qxa8 {[%emt 0:00:02]} 22. Qa1 {[%emt 0:00:01]} Qb7 {[%emt 0:00:02]} 23. Qa5 {[%emt 0:00:08]} Be6 {[%emt 0:00:13]} 24. Ra1 {[%emt 0:00:01]} d5 {[%emt 0:00:02]} 25. Qa6 {[%emt 0:00:10]} Be1+ {[%emt 0:00:04]} 26. Kc2 {[%emt 0:00:04]} Rb8 {[%emt 0:00:04]} 27. Qxb7 {[%emt 0:00:02]} Rxb7 {[%emt 0:00:01]} 28. Ra8+ {[%emt 0:00:01]} Kf7 {[%emt 0:00:02]} 29. cxd5 {[%emt 0:00:02]} cxd5 {[%emt 0:00:02]} 30. Bxe5 {[%emt 0:00:02]} Rxb4 {[%emt 0:00:03]} 31. Bd6 {[%emt 0:00:03]} d4 {[%emt 0:00:05]} 32. Rf8+ {[%emt 0:00:02]} Kg6 {[%emt 0:00:02]} 33. e5+ {[%emt 0:00:02]} Kh6 {[%emt 0:00:01]} 34. Bxb4 {[%emt 0:00:03]} Bxb4 {[%emt 0:00:03]} 35. Re8 {[%emt 0:00:00]} Bf7 {[%emt 0:00:02]} 36. Rb8 {[%emt 0:00:03]} 1-0

[Event "Queens Festival Europe 2022"]
[Site "Tornelo"]
[Date "2022.06.19"]
[Round "7.10"]
[White "Sainbayar, Anuurai"]
[Black "Tani, Selina"]
[Result "1-0"]
[ECO "A00"]
[WhiteElo "1512"]
[BlackElo "1146"]
[Annotator "NA RC"]
[PlyCount "145"]
[EventDate "2022.06.19"]
[EventType "swiss"]
[EventCountry "NET"]
[SourceTitle "playchess.com"]
[Source "ChessBase"]
[SourceQuality "1"]
[TimeControl "180+2"]

1. b4 {[%emt 0:00:02]} e5 {[%emt 0:00:09]} 2. Bb2 {[%emt 0:00:03]} Nc6 {[%emt 0:00:04]} 3. b5 {[%emt 0:00:02]} Nd4 {[%emt 0:00:01]} 4. e3 {[%emt 0:00:02]} Nf5 {[%emt 0:00:14]} 5. Bxe5 {[%emt 0:00:03]} Bc5 {[%emt 0:00:07]} 6. Bxg7 {[%emt 0:00:04]} Nxg7 {[%emt 0:00:02]} 7. Qg4 {[%emt 0:00:19]} Ne6 {[%emt 0:00:21]} 8. Bc4 {[%emt 0:00:19]} Nf6 {[%emt 0:00:11]} 9. Qf5 {[%emt 0:00:11]} d6 {[%emt 0:00:33]} 10. Qf3 {[%emt 0:00:20]} d5 {[%emt 0:00:45]} 11. Bb3 {[%emt 0:00:17]} Ne4 {[%emt 0:00:15]} 12. d3 {[%emt 0:00:14]} Nf6 {[%emt 0:00:13]} 13. Nc3 {[%emt 0:00:14]} Bb4 {[%emt 0:00:03]} 14. Nge2 {[%emt 0:00:07]} a6 {[%emt 0:00:07]} 15. bxa6 {[%emt 0:00:07]} Rxa6 {[%emt 0:00:02]} 16. O-O {[%emt 0:00:03]} c5 {[%emt 0:00:08]} 17. Nxd5 {[%emt 0:00:07]} Nxd5 {[%emt 0:00:02]} 18. Bxd5 {[%emt 0:00:03]} Rd6 {[%emt 0:00:02]} 19. Bc4 {[%emt 0:00:04]} Rg8 {[%emt 0:00:10]} 20. Nf4 {[%emt 0:00:18]} Qe7 {[%emt 0:00:03]} 21. a3 {[%emt 0:00:12]} Ba5 {[%emt 0:00:02]} 22. Bb5+ {[%emt 0:00:14]} Bd7 {[%emt 0:00:02]} 23. Qxb7 {[%emt 0:00:09]} Bxb5 {[%emt 0:00:02]} 24. Qxb5+ {[%emt 0:00:02]} Qd7 {[%emt 0:00:04]} 25. Qb8+ {[%emt 0:00:03]} Qd8 {[%emt 0:00:03]} 26. Qb5+ {[%emt 0:00:04]} Qd7 {[%emt 0:00:01]} 27. Qxa5 {[%emt 0:00:02]} Nxf4 {[%emt 0:00:02]} 28. exf4 {[%emt 0:00:02]} Qe6 {[%emt 0:00:01]} 29. Qa8+ {[%emt 0:00:03]} Rd8 {[%emt 0:00:01]} 30. Qe4 {[%emt 0:00:04]} Qxe4 {[%emt 0:00:02]} 31. dxe4 {[%emt 0:00:02]} Rd2 {[%emt 0:00:01]} 32. Rfd1 {[%emt 0:00:02]} Rxc2 {[%emt 0:00:02]} 33. Rac1 {[%emt 0:00:02]} Rxc1 {[%emt 0:00:01]} 34. Rxc1 {[%emt 0:00:02]} Rg4 {[%emt 0:00:04]} 35. Rxc5 {[%emt 0:00:02]} Rxf4 {[%emt 0:00:02]} 36. f3 {[%emt 0:00:03]} Rf6 {[%emt 0:00:01]} 37. a4 {[%emt 0:00:02]} Ra6 {[%emt 0:00:02]} 38. a5 {[%emt 0:00:02]} Kd7 {[%emt 0:00:02]} 39. Kf2 {[%emt 0:00:03]} Kd6 {[%emt 0:00:01]} 40. Rf5 {[%emt 0:00:03]} Ke6 {[%emt 0:00:03]} 41. Ke3 {[%emt 0:00:02]} f6 {[%emt 0:00:03]} 42. Kd3 {[%emt 0:00:01]} Rd6+ {[%emt 0:00:01]} 43. Kc4 {[%emt 0:00:02]} Ra6 {[%emt 0:00:02]} 44. Kb5 {[%emt 0:00:02]} Ra8 {[%emt 0:00:01]} 45. a6 {[%emt 0:00:02]} Ke7 {[%emt 0:00:03]} 46. Kb6 {[%emt 0:00:02]} Kd7 {[%emt 0:00:04]} 47. Kb7 {[%emt 0:00:03]} Rf8 {[%emt 0:00:02]} 48. a7 {[%emt 0:00:02]} Ke6 {[%emt 0:00:05]} 49. a8=Q {[%emt 0:00:03]} Rxa8 {[%emt 0:00:05]} 50. Kxa8 {[%emt 0:00:02]} Ke7 {[%emt 0:00:00]} 51. Kb7 {[%emt 0:00:02]} Ke6 {[%emt 0:00:01]} 52. Kc6 {[%emt 0:00:02]} h6 {[%emt 0:00:00]} 53. Kc5 {[%emt 0:00:01]} Ke7 {[%emt 0:00:02]} 54. Rh5 {[%emt 0:00:02]} Ke6 {[%emt 0:00:01]} 55. Rxh6 {[%emt 0:00:01]} Kf7 {[%emt 0:00:01]} 56. Kd4 {[%emt 0:00:01]} Kg7 {[%emt 0:00:01]} 57. Rh5 {[%emt 0:00:01]} Kg6 {[%emt 0:00:02]} 58. Rd5 {[%emt 0:00:02]} f5 {[%emt 0:00:01]} 59. exf5+ {[%emt 0:00:03]} Kf6 {[%emt 0:00:01]} 60. g4 {[%emt 0:00:02]} Kf7 {[%emt 0:00:02]} 61. h4 {[%emt 0:00:01]} Kf8 {[%emt 0:00:01]} 62. h5 {[%emt 0:00:01]} Ke8 {[%emt 0:00:01]} 63. Rd6 {[%emt 0:00:02]} Ke7 {[%emt 0:00:00]} 64. Ke5 {[%emt 0:00:01]} Kf7 {[%emt 0:00:02]} 65. f6 {[%emt 0:00:01]} Ke8 {[%emt 0:00:02]} 66. g5 {[%emt 0:00:02]} Kf8 {[%emt 0:00:04]} 67. g6 {[%emt 0:00:01]} Ke8 {[%emt 0:00:03]} 68. f7+ {[%emt 0:00:03]} Kf8 {[%emt 0:00:03]} 69. h6 {[%emt 0:00:02]} Ke7 {[%emt 0:00:06]} 70. Re6+ {[%emt 0:00:02]} Kd7 {[%emt 0:00:01]} 71. f8=Q {[%emt 0:00:04]} Kc7 {[%emt 0:00:02]} 72. Qf7+ {[%emt 0:00:02]} Kb8 {[%emt 0:00:03]} 73. Re8# {[%emt 0:00:01]} 1-0

[Event "Queens Festival Europe 2022"]
[Site "Tornelo"]
[Date "2022.06.19"]
[Round "7.12"]
[White "Ismayilova, Salbinaz"]
[Black "Kusova, Nikola"]
[Result "1-0"]
[ECO "C28"]
[WhiteElo "1090"]
[BlackElo "1250"]
[Annotator "NA RC"]
[PlyCount "93"]
[EventDate "2022.06.19"]
[EventType "swiss"]
[EventCountry "NET"]
[SourceTitle "playchess.com"]
[Source "ChessBase"]
[SourceQuality "1"]
[TimeControl "180+2"]

1. e4 {[%emt 0:00:02]} e5 {[%emt 0:00:06]} 2. Nf3 {[%emt 0:00:02]} Nf6 {[%emt 0:00:04]} 3. Nc3 {[%emt 0:00:03]} Bb4 {[%emt 0:00:03]} 4. Bc4 {[%emt 0:00:06]} O-O {[%emt 0:00:11]} 5. d3 {[%emt 0:00:07]} Nc6 {[%emt 0:00:09]} 6. Bg5 {[%emt 0:00:04]} d6 {[%emt 0:00:17]} 7. h3 {[%emt 0:00:04]} Re8 {[%emt 0:00:09]} 8. O-O {[%emt 0:00:03]} Bxc3 {[%emt 0:00:07]} 9. bxc3 {[%emt 0:00:02]} Be6 {[%emt 0:00:06]} 10. Bb3 {[%emt 0:00:04]} Qe7 {[%emt 0:00:23]} 11. Nd2 {[%emt 0:00:08]} Rad8 {[%emt 0:00:05]} 12. f4 {[%emt 0:00:03]} b5 {[%emt 0:00:16]} 13. f5 {[%emt 0:00:04]} Bxb3 {[%emt 0:00:04]} 14. Nxb3 {[%emt 0:00:03]} d5 {[%emt 0:00:11]} 15. exd5 {[%emt 0:00:04]} Rxd5 {[%emt 0:00:02]} 16. Qf3 {[%emt 0:00:09]} e4 {[%emt 0:00:09]} 17. dxe4 {[%emt 0:00:06]} Qxe4 {[%emt 0:00:03]} 18. Bxf6 {[%emt 0:00:13]} Qxf3 {[%emt 0:00:13]} 19. Rxf3 {[%emt 0:00:04]} gxf6 {[%emt 0:00:03]} 20. Rg3+ {[%emt 0:00:02]} Kh8 {[%emt 0:00:02]} 21. Rf1 {[%emt 0:00:06]} Ree5 {[%emt 0:00:03]} 22. Rgf3 {[%emt 0:00:12]} a5 {[%emt 0:00:04]} 23. Nc1 {[%emt 0:00:13]} Rd2 {[%emt 0:00:05]} 24. R1f2 {[%emt 0:00:06]} Rd1+ {[%emt 0:00:04]} 25. Rf1 {[%emt 0:00:02]} Ree1 {[%emt 0:00:05]} 26. Rxe1 {[%emt 0:00:04]} Rxe1+ {[%emt 0:00:02]} 27. Rf1 {[%emt 0:00:02]} Re2 {[%emt 0:00:01]} 28. Nxe2 {[%emt 0:00:02]} Ne5 {[%emt 0:00:10]} 29. Nd4 {[%emt 0:00:08]} b4 {[%emt 0:00:03]} 30. cxb4 {[%emt 0:00:02]} axb4 {[%emt 0:00:02]} 31. Rb1 {[%emt 0:00:02]} c5 {[%emt 0:00:03]} 32. Ne2 {[%emt 0:00:07]} Nc4 {[%emt 0:00:03]} 33. c3 {[%emt 0:00:07]} Nd2 {[%emt 0:00:03]} 34. Rb2 {[%emt 0:00:15]} Nc4 {[%emt 0:00:12]} 35. Rb1 {[%emt 0:00:08]} Nd2 {[%emt 0:00:04]} 36. Rd1 {[%emt 0:00:05]} Ne4 {[%emt 0:00:09]} 37. cxb4 {[%emt 0:00:03]} cxb4 {[%emt 0:00:03]} 38. Rb1 {[%emt 0:00:02]} Nd6 {[%emt 0:00:04]} 39. Rxb4 {[%emt 0:00:02]} Nxf5 {[%emt 0:00:03]} 40. Nf4 {[%emt 0:00:03]} Ne3 {[%emt 0:00:03]} 41. Nh5 {[%emt 0:00:02]} h6 {[%emt 0:00:05]} 42. Nxf6 {[%emt 0:00:04]} Kg7 {[%emt 0:00:04]} 43. Ne4 {[%emt 0:00:04]} Nc2 {[%emt 0:00:06]} 44. Rb2 {[%emt 0:00:04]} Ne3 {[%emt 0:00:02]} 45. a4 {[%emt 0:00:02]} Nc4 {[%emt 0:00:02]} 46. Rb4 {[%emt 0:00:03]} Nd6 {[%emt 0:00:04]} 47. Nxd6 {[%emt 0:00:02]} 1-0

[Event "Queens Festival Europe 2022"]
[Site "Tornelo"]
[Date "2022.06.19"]
[Round "7.18"]
[White "Malaieru, Alexandra-Gabriela"]
[Black "Jithendra, Raina"]
[Result "1-0"]
[ECO "C50"]
[WhiteElo "1129"]
[BlackElo "1306"]
[Annotator "NA RC"]
[PlyCount "69"]
[EventDate "2022.06.19"]
[EventType "swiss"]
[EventCountry "NET"]
[SourceTitle "playchess.com"]
[Source "ChessBase"]
[SourceQuality "1"]
[TimeControl "180+2"]

1. e4 {[%emt 0:00:15]} e5 {[%emt 0:00:33]} 2. Nf3 {[%emt 0:00:03]} Nc6 {[%emt 0:00:01]} 3. Bc4 {[%emt 0:00:02]} Bc5 {[%emt 0:00:05]} 4. d3 {[%emt 0:00:02]} Nf6 {[%emt 0:00:03]} 5. O-O {[%emt 0:00:02]} d6 {[%emt 0:00:05]} 6. h3 {[%emt 0:00:02]} h6 {[%emt 0:00:03]} 7. Nc3 {[%emt 0:00:03]} O-O {[%emt 0:00:03]} 8. Be3 {[%emt 0:00:02]} Bb6 {[%emt 0:00:02]} 9. d4 {[%emt 0:00:08]} exd4 {[%emt 0:00:05]} 10. Nxd4 {[%emt 0:00:02]} Nxd4 {[%emt 0:00:16]} 11. Bxd4 {[%emt 0:00:02]} c6 {[%emt 0:00:24]} 12. e5 {[%emt 0:00:22]} dxe5 {[%emt 0:00:45]} 13. Bxe5 {[%emt 0:00:05]} Qxd1 {[%emt 0:00:04]} 14. Raxd1 {[%emt 0:00:04]} Nd7 {[%emt 0:00:07]} 15. Bd6 {[%emt 0:00:05]} Re8 {[%emt 0:00:12]} 16. Rfe1 {[%emt 0:00:05]} Nf6 {[%emt 0:00:11]} 17. Rxe8+ {[%emt 0:00:18]} Nxe8 {[%emt 0:00:03]} 18. Bg3 {[%emt 0:00:11]} Bf5 {[%emt 0:00:06]} 19. Bd3 {[%emt 0:00:15]} Bxd3 {[%emt 0:00:02]} 20. Rxd3 {[%emt 0:00:04]} Nf6 {[%emt 0:00:01]} 21. Be5 {[%emt 0:00:06]} Re8 {[%emt 0:00:10]} 22. Bxf6 {[%emt 0:00:04]} Re1+ {[%emt 0:00:11]} 23. Kh2 {[%emt 0:00:05]} gxf6 {[%emt 0:00:13]} 24. Rg3+ {[%emt 0:00:04]} Kh7 {[%emt 0:00:01]} 25. Rf3 {[%emt 0:00:05]} Bc7+ {[%emt 0:00:02]} 26. g3 {[%emt 0:00:03]} Rc1 {[%emt 0:00:03]} 27. Rxf6 {[%emt 0:00:04]} Rxc2 {[%emt 0:00:02]} 28. Rxf7+ {[%emt 0:00:02]} Kg6 {[%emt 0:00:02]} 29. Rxc7 {[%emt 0:00:02]} Rxf2+ {[%emt 0:00:01]} 30. Kg1 {[%emt 0:00:05]} Rxb2 {[%emt 0:00:02]} 31. Ne4 {[%emt 0:00:04]} Rb1+ {[%emt 0:00:04]} 32. Kf2 {[%emt 0:00:06]} Rb2+ {[%emt 0:00:02]} 33. Kf3 {[%emt 0:00:02]} Rxa2 {[%emt 0:00:02]} 34. Rxb7 {[%emt 0:00:06]} Ra3+ {[%emt 0:00:02]} 35. Kf4 {[%emt 0:00:04]} 1-0

[Event "Queens Festival Europe 2022"]
[Site "Tornelo"]
[Date "2022.06.19"]
[Round "8.1"]
[White "Gueci, Tea"]
[Black "Okuyaz, Duru"]
[Result "1/2-1/2"]
[ECO "C10"]
[WhiteElo "2248"]
[BlackElo "2090"]
[Annotator "TA"]
[PlyCount "94"]
[EventDate "2022.06.19"]
[EventType "swiss"]
[EventCountry "NET"]
[SourceTitle "playchess.com"]
[Source "ChessBase"]
[SourceQuality "1"]
[TimeControl "180+2"]

{[%evp 17,94,19,7,0,0,-4,0,-11,-12,-26,0,0,0,0,0,0,0,0,16,15,14,24,16,8,12,0,0,0,0,0,0,-101,-106,-138,-142,-141,-144,-161,-161,-148,-148,-146,-150,-147,-151,-141,-126,-217,-214,-266,-68,-83,-82,-110,-113,-110,-110,-118,0,0,0,0,0,0,0,0,0,0,0,-13,0,0,0,0,0,-5,0,-13,0]} 1. e4 {[%emt 0:00:02]} e6 {[%emt 0:00:03]} 2. d4 {[%emt 0:00:02]} d5 {[%emt 0:00:01]} 3. Nd2 {[%emt 0:00:01]} dxe4 {[%emt 0:00:02]} 4. Nxe4 {[%emt 0:00:00]} Nd7 {[%emt 0:00:01]} 5. Nf3 {[%emt 0:00:02]} Ngf6 {[%emt 0:00:01]} 6. Nxf6+ {[%emt 0:00:02]} Nxf6 {[%emt 0:00:01]} 7. Bd3 {[%emt 0:00:00]} c5 {[%emt 0:00:02]} 8. dxc5 {[%emt 0:00:11]} Bxc5 {[%emt 0:00:02]} 9. O-O {[%emt 0:00:02] 9.Qe2 gains popularity.} O-O {[%emt 0:00:01]} 10. h3 {[%emt 0:00:01] C10: French with 3 Nc3: Unusual Black 3rd moves and 3...dxe4.} b6 {[%emt 0:00:02]} 11. Qe2 {[%emt 0:00:05]} Bb7 {[%emt 0:00:01] [#]} 12. c3 $146 {[%emt 0:00:03]} ({Predecessor:} 12. Ne5 Qd5 13. Nf3 Qh5 14. Bf4 Bxf3 15. Qxf3 Qxf3 16. gxf3 Nd5 17. Bg3 Rad8 {0-1 (41) Alavkin,A (2401)-Mokshanov,A (2421) Samara 2012}) 12... Qc7 {[%emt 0:00:12]} 13. Bg5 {[%emt 0:00:06]} Be7 {[%emt 0:00:12]} (13... Nh5 $5 {[%cal Rh5g3]} 14. Rfd1 h6 $15) 14. Rad1 {[%emt 0:00:15]} Nd5 {[%emt 0:00:19][%cal Od5c3]} 15. Qe4 {[%emt 0:00:23][%csl Gd3][%cal Re4h7] [#]} g6 $1 {[%emt 0:00:13]} 16. Qh4 {[%emt 0:00:02]} Bxg5 {[%emt 0:00:06]} 17. Nxg5 {[%emt 0:00:00][%csl Gg5][%cal Rh4h7]} h5 {[%emt 0:00:16]} 18. Be4 {[%emt 0:00:40]} Nf6 {[%emt 0:00:44]} 19. Bxb7 {[%emt 0:00:11]} Qxb7 {[%emt 0:00:01]} 20. Qf4 {[%emt 0:00:01]} Kg7 {[%emt 0:00:05]} 21. Rfe1 {[%emt 0:00:04] aiming for Qe5.} Rad8 {[%emt 0:00:09]} 22. Rd6 {[%emt 0:00:29]} Rxd6 {[%emt 0:00:12]} 23. Qxd6 {[%emt 0:00:00]} Qd5 {[%emt 0:00:06]} 24. Qg3 {[%emt 0:00:04]} (24. Qxd5 $11 Nxd5 25. a3) 24... Rd8 $17 {[%emt 0:00:05][%cal Bf8d8,Bd8d5,Bd5d2,Bd2c2,Bc2c4][%mdl 32]} 25. a3 {[%emt 0:00:16] [#]} Qd2 $1 {[%emt 0:00:03][%csl LRb2,LRe1]} 26. Qe5 {[%emt 0:00:09]} Rd5 {[%emt 0:00:04]} 27. Qxf6+ {[%emt 0:00:04]} Kxf6 {[%emt 0:00:02]} 28. Ne4+ {[%emt 0:00:00]} Ke7 {[%emt 0:00:04]} 29. Nxd2 {[%emt 0:00:00]} Rxd2 {[%emt 0:00:01][%mdl 4096] Endgame KR-KR} 30. Rb1 {[%emt 0:00:01]} Kd6 {[%emt 0:00:03]} 31. Kf1 {[%emt 0:00:02]} Kc5 {[%emt 0:00:03]} 32. b3 {[%emt 0:00:03]} (32. Ke1 $17 Rc2 33. Rd1) 32... Rc2 $19 {[%emt 0:00:03]} 33. c4 {[%emt 0:00:04]} Kd4 $2 {[%emt 0:00:02]} (33... Ra2 $19 34. Re1 Rxa3 35. Re5+ Kd4) 34. Rd1+ $1 $15 {[%emt 0:00:05]} Kc3 {[%emt 0:00:01]} 35. Rd7 {[%emt 0:00:03]} Kxb3 {[%emt 0:00:21] ...a5 is the strong threat.} 36. Rxa7 {[%emt 0:00:02]} Rxc4 {[%emt 0:00:02]} 37. Rb7 {[%emt 0:00:02]} Rf4 {[%emt 0:00:07]} ({Better is} 37... Rc6 $17 38. Rxf7 Kxa3) 38. Rxb6+ $11 {[%emt 0:00:04] The position is equal.} Kxa3 {[%emt 0:00:01]} 39. Ke2 {[%emt 0:00:01]} Rb4 {[%emt 0:00:03]} 40. Ra6+ {[%emt 0:00:05]} Kb3 {[%emt 0:00:01]} 41. Ra7 {[%emt 0:00:00]} Rf4 {[%emt 0:00:04]} 42. Ke3 {[%emt 0:00:02]} Rf5 {[%emt 0:00:01]} 43. Rc7 {[%emt 0:00:07]} Re5+ {[%emt 0:00:02]} 44. Kd2 {[%emt 0:00:06]} Rd5+ {[%emt 0:00:02]} 45. Ke3 {[%emt 0:00:02]} Re5+ {[%emt 0:00:01]} 46. Kd2 {[%emt 0:00:01]} Rf5 {[%emt 0:00:02]} 47. Ke3 {[%emt 0:00:02]} Re5+ {[%emt 0:00:01] Whites escaped into a draw.  Weighted Error Value: White=0.13 (very precise) /Black=0.14 (very precise)} 1/2-1/2

[Event "Queens Festival Europe 2022"]
[Site "Tornelo"]
[Date "2022.06.19"]
[Round "8.1"]
[White "Vujcic, Milena"]
[Black "Mdivani, Maka"]
[Result "1-0"]
[ECO "B42"]
[WhiteElo "1987"]
[BlackElo "1901"]
[Annotator "NA RC"]
[PlyCount "67"]
[EventDate "2022.06.19"]
[EventType "swiss"]
[EventCountry "NET"]
[SourceTitle "playchess.com"]
[Source "ChessBase"]
[SourceQuality "1"]
[TimeControl "180+2"]

1. e4 {[%emt 0:00:02]} c5 {[%emt 0:00:06]} 2. Nf3 {[%emt 0:00:02]} e6 {[%emt 0:00:05]} 3. d4 {[%emt 0:00:02]} cxd4 {[%emt 0:00:04]} 4. Nxd4 {[%emt 0:00:01]} a6 {[%emt 0:00:04]} 5. Bd3 {[%emt 0:00:02]} Nc6 {[%emt 0:00:07]} 6. Nxc6 {[%emt 0:00:05]} bxc6 {[%emt 0:00:03]} 7. c4 {[%emt 0:00:01]} d5 {[%emt 0:00:09]} 8. Nc3 {[%emt 0:00:06]} d4 {[%emt 0:00:20]} 9. Na4 {[%emt 0:00:06]} Bb4+ {[%emt 0:00:06]} 10. Bd2 {[%emt 0:00:03]} Qa5 {[%emt 0:00:06]} 11. b3 {[%emt 0:00:17]} Nf6 {[%emt 0:00:23]} 12. Bxb4 {[%emt 0:00:11]} Qxb4+ {[%emt 0:00:03]} 13. Qd2 {[%emt 0:00:01]} Qxd2+ {[%emt 0:00:21]} 14. Kxd2 {[%emt 0:00:02]} e5 {[%emt 0:00:04]} 15. g3 {[%emt 0:00:07]} Bg4 {[%emt 0:00:07]} 16. f4 {[%emt 0:00:07]} exf4 {[%emt 0:00:19]} 17. gxf4 {[%emt 0:00:03]} O-O {[%emt 0:00:06]} 18. e5 {[%emt 0:00:06]} Nd7 {[%emt 0:00:03]} 19. Rhg1 {[%emt 0:00:01]} Bh5 {[%emt 0:00:10]} 20. Be4 {[%emt 0:00:03]} Rac8 {[%emt 0:00:05]} 21. Bf5 {[%emt 0:00:09]} Rcd8 {[%emt 0:00:12]} 22. Bxd7 {[%emt 0:00:15]} Rxd7 {[%emt 0:00:02]} 23. Raf1 {[%emt 0:00:03]} Re8 {[%emt 0:00:12]} 24. Nc5 {[%emt 0:00:03]} Ra7 {[%emt 0:00:03]} 25. Kd3 {[%emt 0:00:05]} Rd8 {[%emt 0:00:09]} 26. f5 {[%emt 0:00:07]} a5 {[%emt 0:00:05]} 27. Rg5 {[%emt 0:00:07]} g6 {[%emt 0:00:05]} 28. Ne4 {[%emt 0:00:03]} Kg7 {[%emt 0:00:04]} 29. Nf6 {[%emt 0:00:05]} Kh6 {[%emt 0:00:04]} 30. Rfg1 {[%emt 0:00:14]} Re7 {[%emt 0:00:03]} 31. Nxh5 {[%emt 0:00:28]} gxh5 {[%emt 0:00:02]} 32. f6 {[%emt 0:00:01]} Ree8 {[%emt 0:00:04]} 33. Rf5 {[%emt 0:00:09]} c5 {[%emt 0:00:03]} 34. Rgg5 {[%emt 0:00:03]} 1-0